bitfinex/quotes_SOLUSD_20250616
["timestamp","ask_amount","ask_price","bid_price","bid_amount"]
[1750095480221,4.73181111,157.88,157.83,7.58899282]
[1750095480502,5.56,157.89,157.81,18.64964886]
[1750095480711,13.14899282,157.89,157.85,7.58899282]
[1750095480878,13.14899282,157.89,157.85,13.92397455]
[1750095481922,3.30382779,157.91,157.88,26.23864168]
[1750095482276,7.58899282,157.9,157.85,6.33498173]
[1750095482484,3.44598936,157.91,157.84,13.92451616]
[1750095482709,37.03498218,157.91,157.86,7.58899282]
[1750095483084,7.58899282,157.9,157.85,26.23864168]
[1750095484617,7.58899282,157.9,157.85,32.57370196]
[1750095484909,7.58899282,157.89,157.85,32.57370196]
[1750095485496,7.58899282,157.89,157.85,24.98470914]
[1750095486016,7.58899282,157.89,157.85,32.57370196]
[1750095486312,7.58899282,157.89,157.85,26.23864168]
[1750095486510,7.58899282,157.89,157.85,18.64964886]
[1750095486511,7.58899282,157.88,157.85,18.64964886]
[1750095487046,7.58899282,157.88,157.85,6.33512346]
[1750095488553,7.58899282,157.88,157.84,13.9244501]
[1750095489012,7.58899282,157.87,157.83,24.9853128]
[1750095489717,7.58899282,157.86,157.83,18.64964886]
[1750095490228,7.58899282,157.86,157.83,6.33589222]
[1750095491540,7.58899282,157.88,157.83,13.92488504]
[1750095492118,7.58899282,157.87,157.83,13.92488504]
[1750095492314,7.58899282,157.87,157.83,6.33589222]
[1750095492931,9.63815706,157.89,157.83,6.33589222]
[1750095493241,7.58899282,157.87,157.83,13.92488504]
[1750095494033,7.58899282,157.88,157.83,13.92488504]
[1750095494430,7.58899282,157.85,157.82,107.44964886]
[1750095494626,7.58899282,157.85,157.81,18.64964886]
[1750095495433,7.58899282,157.85,157.81,32.57520676]
[1750095496760,7.58899282,157.88,157.84,18.64964886]
[1750095497647,7.58899282,157.88,157.84,24.98498374]
[1750095498355,3.30437091,157.89,157.86,26.23864168]
[1750095498655,1.6143,157.91,157.88,7.58899282]
[1750095498835,3.30337979,157.92,157.88,7.58899282]
[1750095500138,3.30337979,157.92,157.9,7.58899282]
[1750095501046,6.33696759,157.95,157.91,7.58899282]
[1750095501444,1.6069,157.95,157.91,7.58899282]
[1750095501837,9.19589282,157.95,157.91,7.58899282]
[1750095502362,9.19589282,157.95,157.91,13.92148914]
[1750095502555,9.19589282,157.95,157.9,18.64964886]
[1750095502556,7.58899282,157.94,157.9,13.92200395]
[1750095502938,7.58899282,157.94,157.91,18.64964886]
[1750095503134,7.58899282,157.94,157.9,6.33301113]
[1750095503362,7.58899282,157.94,157.9,24.98265999]
[1750095503852,7.58899282,157.93,157.89,6.3334146]
[1750095504841,7.58899282,157.93,157.89,13.92240742]
[1750095505876,7.58899282,157.93,157.89,6.3334146]
[1750095506170,7.58899282,157.92,157.89,6.3334146]
[1750095506562,7.58899282,157.92,157.89,18.64964886]
[1750095507270,7.58899282,157.92,157.89,24.9831677]
[1750095507658,6.33159756,157.94,157.89,24.9831677]
[1750095508170,7.58899282,157.93,157.89,32.57216052]
[1750095511275,13.92094324,157.93,157.89,26.23864168]
[1750095512064,1.6069,157.95,157.9,7.58899282]
[1750095512065,7.58899282,157.94,157.9,7.58899282]
[1750095512271,7.58899282,157.94,157.89,7.58899282]
[1750095512571,9.19589282,157.95,157.9,7.58899282]
[1750095513077,48.78220024,157.96,157.91,7.58899282]
[1750095513647,12.30650903,157.95,157.91,7.58899282]
[1750095514245,4.71751621,157.95,157.91,18.64964886]
[1750095514450,7.58899282,157.95,157.91,18.64964886]
[1750095516369,41.19320742,157.96,157.91,18.64964886]
[1750095516684,41.19320742,157.96,157.91,24.98235598]
[1750095516685,7.58899282,157.95,157.91,24.98235598]
[1750095517777,15.19320742,157.96,157.91,32.5713488]
[1750095517984,7.58899282,157.95,157.91,32.5713488]
[1750095519386,10.89143049,157.96,157.93,18.64964886]
[1750095519597,7.58899282,157.98,157.93,7.58899282]
[1750095520267,11.28660084,157.99,157.93,7.58899282]
[1750095520462,7.58899282,157.98,157.93,7.58899282]
[1750095520968,7.58899282,157.98,157.93,13.92060223]
[1750095521187,4.95696058,157.99,157.93,13.92060223]
[1750095521395,3.30176058,157.99,157.97,18.64964886]
[1750095521598,7.58899282,158.0,157.97,18.64964886]
[1750095521891,7.58899282,157.99,157.97,18.64964886]
[1750095522392,9.62968632,158.02,157.97,18.64964886]
[1750095522602,7.58899282,158.0,157.97,18.64964886]
[1750095522977,6.3287784,158.01,157.97,18.64964886]
[1750095523800,7.58899282,158.0,157.97,18.64964886]
[1750095524117,7.58899282,157.99,157.95,95.13101495]
[1750095524396,7.58899282,157.99,157.96,18.64964886]
[1750095525103,7.58899282,158.0,157.96,18.64964886]
[1750095525899,7.58899282,158.0,157.96,24.98020472]
[1750095528795,7.58899282,157.99,157.96,18.64964886]
[1750095529381,6.32914144,158.0,157.96,18.64964886]
[1750095529584,7.58899282,157.98,157.96,18.64964886]
[1750095529996,7.58899282,157.97,157.95,88.8]
[1750095530198,7.58899282,157.96,157.95,88.8]
[1750095531209,6.33011932,157.98,157.95,88.8]
[1750095531412,7.58899282,157.96,157.95,88.8]
[1750095531791,7.58899282,157.96,157.9,94.36]
[1750095531999,7.58899282,157.92,157.91,18.64964886]
[1750095532311,7.58899282,157.92,157.9,18.64964886]
[1750095533209,7.58899282,157.91,157.89,18.64964886]
[1750095534321,7.58899282,157.9,157.87,6.33419017]
[1750095534540,6.33253844,157.92,157.87,18.64964886]
[1750095534832,6.47413331,157.93,157.87,18.64964886]
[1750095535002,7.58899282,157.91,157.87,18.64964886]
[1750095535835,7.58899282,157.9,157.87,24.98384981]
[1750095537721,7.58899282,157.91,157.87,24.98384981]
[1750095538534,7.58899282,157.91,157.87,113.78384981]
[1750095539526,7.58899282,157.9,157.87,113.78384981]
[1750095539732,7.58899282,157.89,157.87,107.44964886]
[1750095540122,0.14216157,157.92,157.87,113.78392901]
[1750095540342,7.58899282,157.9,157.87,113.78392901]
[1750095540851,7.58899282,157.9,157.87,88.8]
[1750095541022,0.14216157,157.92,157.87,88.8]
[1750095541023,7.58899282,157.89,157.87,88.8]
[1750095541926,6.33279432,157.91,157.87,88.8]
[1750095542246,7.58899282,157.89,157.87,88.8]
[1750095543955,6.33364858,157.89,157.85,18.64964886]
[1750095544249,7.97304458,157.9,157.85,18.64964886]
[1750095544568,7.58899282,157.89,157.85,24.9847758]
[1750095545125,7.58899282,157.89,157.85,18.64964886]
[1750095545331,7.58899282,157.87,157.84,88.8]
[1750095545576,7.58899282,157.86,157.83,18.64964886]
[1750095545847,7.58899282,157.84,157.81,88.8]
[1750095546046,7.58899282,157.82,157.74,7.58899282]
[1750095546360,7.58899282,157.77,157.74,6.33954608]
[1750095546537,7.58899282,157.78,157.75,18.64964886]
[1750095547358,7.58899282,157.77,157.75,18.64964886]
[1750095547557,7.58899282,157.76,157.73,18.64964886]
[1750095547755,7.58899282,157.75,157.72,6.34034998]
[1750095548551,7.58899282,157.74,157.72,6.34034998]
[1750095550458,7.58899282,157.74,157.71,24.99026676]
[1750095552459,7.58899282,157.72,157.68,11.90187827]
[1750095552766,7.58899282,157.7,157.67,6.3423513]
[1750095553061,0.42648471,157.74,157.65,6.34316523]
[1750095553062,7.58899282,157.69,157.65,6.34316523]
[1750095553234,7.58899282,157.69,157.66,18.64964886]
[1750095553433,7.58899282,157.68,157.66,18.64964886]
[1750095553635,0.42648471,157.74,157.66,18.64964886]
[1750095554034,7.58899282,157.7,157.67,6.34236062]
[1750095554528,26.0,157.73,157.68,18.64964886]
[1750095554732,7.58899282,157.71,157.68,18.64964886]
[1750095554930,7.58899282,157.7,157.68,18.64964886]
[1750095555153,26.0,157.73,157.67,6.34236062]
[1750095555454,7.58899282,157.7,157.68,18.64964886]
[1750095555760,26.42648471,157.74,157.67,6.34236062]
[1750095555761,7.58899282,157.74,157.7,18.64964886]
[1750095555934,7.58899282,157.75,157.7,7.58899282]
[1750095556138,7.58899282,157.75,157.72,18.64964886]
[1750095556749,1.5602,157.76,157.72,18.64964886]
[1750095556750,9.14919282,157.76,157.72,18.64964886]
[1750095556947,7.58899282,157.76,157.72,18.64964886]
[1750095557451,7.58899282,157.76,157.72,7.58899282]
[1750095557657,7.58899282,157.76,157.7,18.64964886]
[1750095557861,7.58899282,157.76,157.71,7.58899282]
[1750095558061,7.58899282,157.76,157.72,7.58899282]
[1750095558375,5.56,157.78,157.74,18.64964886]
[1750095558558,7.58899282,157.77,157.74,18.64964886]
[1750095558940,7.58899282,157.76,157.73,6.33994801]
[1750095559553,7.58899282,157.75,157.72,18.64964886]
[1750095559755,7.58899282,157.74,157.72,18.64964886]
[1750095561947,7.58899282,157.74,157.71,6.34072516]
[1750095562146,6.76482533,157.77,157.71,6.34072516]
[1750095562445,7.58899282,157.75,157.71,6.34072516]
[1750095563362,7.58899282,157.74,157.71,18.64964886]
[1750095563569,7.58899282,157.72,157.7,18.64964886]
[1750095563858,7.58899282,157.73,157.7,18.64964886]
[1750095564263,6.33954079,157.75,157.7,18.64964886]
[1750095564467,7.58899282,157.73,157.7,18.64964886]
[1750095564641,7.58899282,157.73,157.69,88.8]
[1750095564843,7.58899282,157.7,157.66,18.64964886]
[1750095565149,7.58899282,157.67,157.66,107.44964886]
[1750095565463,7.58899282,157.67,157.61,95.4315]
[1750095565648,0.42648471,157.72,157.62,18.64964886]
[1750095565649,7.58899282,157.64,157.62,18.64964886]
[1750095566053,7.58899282,157.63,157.62,18.64964886]
[1750095566265,7.58899282,157.63,157.59,122.38899282]
[1750095566444,7.58899282,157.63,157.59,26.0]
[1750095566765,7.58899282,157.63,157.6,18.64964886]
[1750095567267,7.58899282,157.62,157.57,18.71362422]
[1750095567449,7.58899282,157.62,157.57,26.30261704]
[1750095567637,7.58899282,157.61,157.57,18.71362422]
[1750095567843,7.58899282,157.6,157.57,0.06397536]
[1750095568953,7.58899282,157.61,157.57,0.06397536]
[1750095569177,6.34356762,157.64,157.57,0.06397536]
[1750095569178,7.58899282,157.58,157.57,0.06397536]
[1750095569466,7.58899282,157.59,157.57,0.06397536]
[1750095569844,7.58899282,157.59,157.56,24.99637344]
[1750095570150,7.58899282,157.57,157.53,34.42837941]
[1750095570352,7.58899282,157.55,157.51,6.34871289]
[1750095570881,7.58899282,157.56,157.52,26.23864168]
[1750095571260,1.6302,157.6,157.55,18.64964886]
[1750095571445,7.58899282,157.61,157.57,18.64964886]
[1750095572075,5.56,157.63,157.57,26.23864168]
[1750095572250,7.58899282,157.61,157.57,26.23864168]
[1750095572446,7.58899282,157.61,157.58,6.34598299]
[1750095573461,7.58899282,157.61,157.57,24.99591742]
[1750095573639,7.58899282,157.6,157.57,24.99591742]
[1750095574073,7.58899282,157.6,157.57,6.41024392]
[1750095574253,7.58899282,157.58,157.57,0.06397536]
[1750095574756,7.58899282,157.6,157.57,0.06397536]
[1750095574947,11.42223251,157.61,157.57,0.06397536]
[1750095575157,5.56,157.63,157.57,11.48620787]
[1750095575370,11.42223251,157.62,157.58,18.64964886]
[1750095576471,11.42223251,157.63,157.6,6.34517766]
[1750095576869,11.42223251,157.63,157.59,6.34544076]
[1750095577076,11.42223251,157.61,157.57,18.71362422]
[1750095578151,11.42223251,157.61,157.57,36.48208747]
[1750095578772,11.42223251,157.61,157.57,25.05985496]
[1750095580381,11.42223251,157.6,157.57,25.05985496]
[1750095580678,11.42223251,157.6,157.57,18.71362422]
[1750095581065,17.76747736,157.6,157.57,0.06397536]
[1750095581251,0.42648471,157.61,157.57,0.06397536]
[1750095581452,11.42223251,157.59,157.57,0.06397536]
[1750095581774,11.42223251,157.6,157.57,0.06397536]
[1750095583167,10.08141651,157.61,157.57,0.06397536]
[1750095583353,11.42223251,157.6,157.57,0.06397536]
[1750095583555,11.42223251,157.58,157.57,0.06397536]
[1750095584679,17.7682155,157.58,157.57,0.06397536]
[1750095584868,11.42223251,157.58,157.57,0.06397536]
[1750095585059,17.7682155,157.58,157.57,0.06397536]
[1750095585867,11.42223251,157.58,157.57,0.06397536]
[1750095586377,17.7682155,157.58,157.57,0.06397536]
[1750095587982,18.19470021,157.58,157.57,0.06397536]
[1750095589783,19.84780021,157.58,157.57,0.06397536]
[1750095590390,8.4255677,157.58,157.57,0.06397536]
[1750095591488,19.84780021,157.58,157.57,0.06397536]
[1750095593689,8.4255677,157.58,157.57,0.06397536]
[1750095594273,6.34527576,157.6,157.57,0.06397536]
[1750095594573,11.42223251,157.59,157.57,0.06397536]
[1750095594769,6.34527576,157.6,157.57,0.06397536]
[1750095594973,7.61771256,157.58,157.57,0.06397536]
[1750095595172,6.34527576,157.6,157.57,0.06397536]
[1750095595406,7.61771256,157.59,157.57,0.06397536]
[1750095595624,7.61771256,157.58,157.57,0.06397536]
[1750095596814,35.0320682,157.61,157.57,0.06397536]
[1750095596815,8.88990663,157.61,157.57,0.06397536]
[1750095597011,7.61771256,157.6,157.57,0.06397536]
[1750095598923,8.88990663,157.61,157.57,0.06397536]
[1750095599093,7.61771256,157.59,157.57,0.06397536]
[1750095599930,7.9020357,157.58,157.57,0.06397536]
[1750095600930,14.24801869,157.58,157.57,0.06397536]
[1750095601226,6.63030613,157.58,157.57,0.06397536]
[1750095601430,14.24801869,157.58,157.57,0.06397536]
[1750095603034,43.70101861,157.58,157.57,0.06397536]
[1750095603240,51.68391861,157.58,157.57,0.06397536]
[1750095604621,45.25471861,157.58,157.57,0.06397536]
[1750095605316,0.14216157,157.56,157.5,13.96673968]
[1750095605516,7.61771256,157.54,157.5,13.96673968]
[1750095605817,7.61771256,157.55,157.5,13.96673968]
[1750095606708,7.61771256,157.54,157.5,13.96673968]
[1750095606910,7.61771256,157.54,157.5,6.34902712]
[1750095607912,4.86453835,157.58,157.51,26.26736142]
[1750095608119,10.92855091,157.58,157.54,7.61771256]
[1750095608315,3.31083835,157.58,157.54,107.44964886]
[1750095608535,5.58,157.6,157.57,7.61771256]
[1750095609108,5.58,157.6,157.54,18.64964886]
[1750095609327,5.58,157.6,157.56,7.61771256]
[1750095609516,5.58,157.6,157.57,18.64964886]
[1750095609714,5.58,157.6,157.57,26.26736142]
[1750095610016,5.58,157.6,157.57,13.96395389]
[1750095612021,5.58,157.6,157.57,6.34624133]
[1750095612218,5.58,157.6,157.57,13.96395389]
[1750095612427,7.61771256,157.62,157.58,7.61771256]
[1750095612910,7.61771256,157.62,157.57,13.96395389]
[1750095613812,7.61771256,157.61,157.57,7.61771256]
[1750095614012,7.61771256,157.6,157.56,13.96450108]
[1750095615019,7.61771256,157.6,157.55,107.44964886]
[1750095615020,0.42648471,157.62,157.58,7.61771256]
[1750095615216,3.30949223,157.63,157.59,26.26736142]
[1750095615831,3.30949223,157.63,157.59,25.26736142]
[1750095616139,10.92720479,157.63,157.59,25.26736142]
[1750095616510,3.30949223,157.63,157.59,25.26736142]
[1750095616735,10.92720479,157.63,157.59,25.26736142]
[1750095616939,10.92720479,157.63,157.59,31.61264907]
[1750095617150,3.30949223,157.63,157.59,31.61264907]
[1750095617648,7.61771256,157.64,157.59,17.64964886]
[1750095617814,7.61771256,157.62,157.59,17.64964886]
[1750095618123,8.88903835,157.65,157.61,7.61771256]
[1750095618434,15.23220675,157.65,157.61,7.61771256]
[1750095618736,22.84991931,157.65,157.61,7.61771256]
[1750095619113,22.84991931,157.65,157.6,13.96262444]
[1750095619438,7.61771256,157.64,157.6,6.34491188]
[1750095619738,7.61771256,157.64,157.6,13.96262444]
[1750095619922,7.61771256,157.64,157.6,6.34491188]
[1750095620124,7.61771256,157.64,157.59,13.9631281]
[1750095620707,7.61771256,157.63,157.59,13.9631281]
[1750095621038,7.61771256,157.63,157.59,7.61771256]
[1750095621253,7.61771256,157.63,157.58,32.61316908]
[1750095621426,7.61771256,157.64,157.59,7.61771256]
[1750095621815,13.96146772,157.64,157.59,7.61771256]
[1750095622016,6.34375516,157.64,157.59,7.61771256]
[1750095622216,13.96146772,157.64,157.59,7.61771256]
[1750095622840,7.61771256,157.63,157.59,7.61771256]
[1750095623142,6.34375516,157.64,157.59,7.61771256]
[1750095623622,7.61771256,157.63,157.59,7.61771256]
[1750095624239,7.61771256,157.63,157.59,13.96316979]
[1750095624426,7.61771256,157.63,157.59,7.61771256]
[1750095624625,6.34375516,157.64,157.59,7.61771256]
[1750095624838,7.61771256,157.63,157.59,7.61771256]
[1750095625020,7.61771256,157.63,157.58,24.99545425]
[1750095625216,13.96180069,157.63,157.59,7.61771256]
[1750095625539,13.96180069,157.63,157.58,32.61316681]
[1750095626523,13.96180069,157.63,157.58,26.26736142]
[1750095626723,7.61771256,157.61,157.56,0.06397536]
[1750095627047,0.42648471,157.62,157.56,0.06397536]
[1750095627048,7.61771256,157.58,157.56,0.06397536]
[1750095627345,7.9020357,157.57,157.56,0.06397536]
[1750095628349,8.04419727,157.57,157.56,0.06397536]
[1750095628947,7.8925443,157.64,157.56,7.68168792]
[1750095629132,7.61771256,157.63,157.56,0.06397536]
[1750095629457,7.75987413,157.63,157.58,7.61771256]
[1750095629635,0.28432314,157.64,157.6,7.61771256]
[1750095629954,12.57225091,157.65,157.57,26.0]
[1750095629955,3.30903835,157.65,157.62,7.61771256]
[1750095630253,3.30903835,157.65,157.63,7.61771256]
[1750095630463,5.58,157.68,157.64,7.61771256]
[1750095630656,5.58,157.68,157.65,7.61771256]
[1750095631156,5.58,157.68,157.66,6.3427629]
[1750095631552,3.30817594,157.7,157.66,13.96047546]
[1750095631772,3.30817594,157.7,157.67,7.61771256]
[1750095632959,3.30817594,157.7,157.66,6.3427629]
[1750095633262,11.40628536,157.69,157.65,17.74933337]
[1750095633439,14.7144613,157.7,157.66,11.40628536]
[1750095634255,3.30817594,157.7,157.66,11.40628536]
[1750095635162,21.05564238,157.7,157.66,11.40628536]
[1750095635953,3.30817594,157.7,157.66,11.40628536]
[1750095636158,9.3671688,157.72,157.69,11.40628536]
[1750095637463,9.3671688,157.72,157.68,17.74806451]
[1750095639464,9.3671688,157.72,157.69,11.40628536]
[1750095639638,9.3671688,157.72,157.69,18.64964886]
[1750095639838,9.3671688,157.72,157.7,11.40628536]
[1750095640871,9.3671688,157.72,157.7,17.74717444]
[1750095641545,9.3671688,157.72,157.71,11.40628536]
[1750095641744,9.3671688,157.72,157.71,30.05593422]
[1750095641938,4.93435043,157.77,157.72,18.64964886]
[1750095642142,3.30675043,157.77,157.75,11.40628536]
[1750095642862,3.30675043,157.77,157.76,6.33874239]
[1750095644655,3.30675043,157.77,157.76,11.40628536]
[1750095645835,3.30675043,157.77,157.75,11.40628536]
[1750095646037,3.30675043,157.77,157.75,37.40628536]
[1750095646240,3.30675043,157.77,157.76,56.05593422]
[1750095647167,3.30675043,157.77,157.76,73.80096197]
[1750095647358,9.41920397,157.86,157.79,26.0]
[1750095647548,9.41920397,157.86,157.83,11.40628536]
[1750095647747,11.40628536,157.87,157.83,11.40628536]
[1750095647955,11.40628536,157.87,157.82,11.40628536]
[1750095648172,11.40628536,157.85,157.77,44.64964886]
[1750095648478,11.54844693,157.86,157.81,11.40628536]
[1750095648647,11.54844693,157.86,157.82,11.40628536]
[1750095648648,0.42648471,157.86,157.82,11.40628536]
[1750095648850,19.36253568,157.88,157.83,11.40628536]
[1750095649066,13.02848536,157.88,157.83,17.74184614]
[1750095649362,1.6222,157.88,157.85,11.40628536]
[1750095650062,1.6222,157.88,157.84,11.40628536]
[1750095650268,11.40628536,157.87,157.82,11.40628536]
[1750095650566,11.40628536,157.87,157.83,11.40628536]
[1750095651269,17.7406745,157.87,157.83,11.40628536]
[1750095651667,17.7406745,157.87,157.82,17.74256731]
[1750095652342,11.40628536,157.86,157.81,24.98629907]
[1750095652547,11.40628536,157.86,157.82,11.40628536]
[1750095653369,17.7406745,157.87,157.82,11.40628536]
[1750095653851,17.7406745,157.87,157.82,17.74259573]
[1750095654053,13.02848536,157.88,157.84,11.40628536]
[1750095654460,13.02848536,157.88,157.83,30.05593422]
[1750095655283,19.36242908,157.88,157.83,36.39179093]
[1750095655443,1.6581,157.95,157.83,40.82533323]
[1750095655649,7.2781,157.95,157.87,11.40628536]
[1750095655968,11.40628536,157.92,157.87,11.40628536]
[1750095656170,11.40628536,157.91,157.86,11.40628536]
[1750095656555,11.40628536,157.9,157.85,30.05593422]
[1750095656770,9.63494824,157.94,157.85,30.05593422]
[1750095656771,11.40628536,157.91,157.87,11.40628536]
[1750095657164,11.40628536,157.92,157.87,11.40628536]
[1750095657363,11.40628536,157.92,157.88,6.33392449]
[1750095658858,11.40628536,157.92,157.88,17.74020985]
[1750095659651,0.42648471,157.94,157.89,11.40628536]
[1750095659872,11.83277007,157.94,157.89,11.40628536]
[1750095660377,11.40628536,157.94,157.89,11.40628536]
[1750095660957,7.58300639,157.94,157.89,26.23265525]
[1750095661471,7.58300639,157.94,157.9,6.33312222]
[1750095662176,7.58300639,157.94,157.9,13.91612861]
[1750095662670,7.58300639,157.96,157.91,26.23265525]
[1750095663079,7.58300639,157.95,157.9,6.33312222]
[1750095663285,7.58300639,157.95,157.9,13.91612861]
[1750095664967,7.58300639,157.96,157.91,26.23265525]
[1750095665579,12.3917743,157.98,157.93,26.23265525]
[1750095665770,1.6264,157.99,157.95,7.58300639]
[1750095665771,9.20940639,157.99,157.95,7.58300639]
[1750095665957,9.20940639,157.99,157.94,6.33151829]
[1750095665958,9.20940639,157.99,157.94,7.58300639]
[1750095666359,9.20940639,157.99,157.95,7.58300639]
[1750095666360,1.6264,157.99,157.95,7.58300639]
[1750095666662,9.20940639,157.99,157.95,7.58300639]
[1750095667483,9.20940639,157.99,157.94,7.58300639]
[1750095668382,9.20940639,157.99,157.95,6.33111744]
[1750095668594,1.6264,157.99,157.95,13.91412383]
[1750095668895,9.20940639,157.99,157.95,13.91412383]
[1750095669264,9.20940639,157.99,157.95,7.58300639]
[1750095669861,7.58300639,157.98,157.93,13.91476113]
[1750095670086,7.58300639,157.98,157.93,6.33175474]
[1750095670260,7.58300639,157.98,157.93,13.91476113]
[1750095670460,7.58300639,157.98,157.94,7.58300639]
[1750095670699,15.5389607,157.99,157.94,7.58300639]
[1750095670913,15.5389607,157.99,157.96,7.58300639]
[1750095670914,1.6264,157.99,157.96,7.58300639]
[1750095671715,15.53894771,157.99,157.93,6.33175474]
[1750095671992,7.58300639,157.96,157.92,7.58300639]
[1750095672185,7.58300639,157.97,157.92,7.58300639]
[1750095672390,7.58300639,157.97,157.93,7.58300639]
[1750095672888,8.0094911,157.98,157.93,13.9147481]
[1750095673579,7.58300639,157.98,157.94,7.58300639]
[1750095673778,15.5391075,157.99,157.94,7.58300639]
[1750095673985,7.58300639,157.98,157.94,7.58300639]
[1750095674885,13.91293417,157.98,157.93,7.58300639]
[1750095675394,7.58300639,157.96,157.92,26.23265525]
[1750095676184,7.58300639,157.96,157.91,7.58300639]
[1750095676891,7.58300639,157.96,157.92,7.58300639]
[1750095677490,6.33004406,157.98,157.93,7.58300639]
[1750095677698,7.58300639,157.98,157.94,7.58300639]
[1750095677881,1.6264,157.99,157.95,7.58300639]
[1750095678081,15.53895764,157.99,157.94,7.58300639]
[1750095678992,15.53895764,157.99,157.94,13.91447777]
[1750095679301,9.20940639,157.99,157.95,7.58300639]
[1750095679490,1.6264,157.99,157.95,7.58300639]
[1750095680378,1.6264,157.99,157.95,13.9138349]
[1750095681774,5.62,158.0,157.96,7.58300639]
[1750095681993,7.86732953,158.01,157.96,7.58300639]
[1750095682228,3.3016303,158.02,157.97,7.58300639]
[1750095682532,49.9872421,158.05,158.0,13.91196575]
[1750095682817,49.9872421,158.05,157.97,15.82572878]
[1750095682818,8.0094911,158.04,157.98,18.64964886]
[1750095682983,7.58300639,158.03,157.99,7.58300639]
[1750095684203,7.58300639,158.0,157.95,88.8]
[1750095684406,7.58300639,157.98,157.95,88.8]
[1750095684605,7.58300639,157.98,157.94,32.56417354]
[1750095684779,7.58300639,157.99,157.94,32.56417354]
[1750095685788,7.58300639,157.99,157.95,7.58300639]
[1750095685988,7.58300639,157.99,157.94,32.56417354]
[1750095687188,7.58300639,157.99,157.95,7.58300639]
[1750095687609,7.58300639,157.99,157.94,26.23265525]
[1750095687807,44.79621346,157.99,157.9,6.33312222]
[1750095687984,7.58300639,157.99,157.95,7.58300639]
[1750095688187,0.42648471,157.99,157.95,7.58300639]
[1750095688388,8.0094911,157.99,157.94,7.58300639]
[1750095689002,7.58300639,157.97,157.93,18.64964886]
[1750095689193,7.58300639,157.97,157.93,26.23265525]
[1750095689406,7.58300639,157.97,157.93,18.64964886]
[1750095689706,7.58300639,157.97,157.93,24.98137847]
[1750095689910,7.58300639,157.96,157.91,7.58300639]
[1750095690205,7.58300639,157.96,157.88,6.3759]
[1750095690206,7.58300639,157.94,157.89,6.33352333]
[1750095690384,7.58300639,157.94,157.9,18.64964886]
[1750095690582,7.58300639,157.96,157.92,7.58300639]
[1750095691007,7.58300639,157.96,157.91,7.58300639]
[1750095691592,7.58300639,157.96,157.92,6.33232016]
[1750095691886,7.58300639,157.95,157.92,6.33232016]
[1750095692081,7.58300639,157.94,157.9,52.23265525]
[1750095692609,7.58300639,157.94,157.9,58.56560682]
[1750095693115,4.70970189,157.96,157.9,58.56560682]
[1750095693424,7.58300639,157.94,157.9,58.56560682]
[1750095694226,7.58300639,157.95,157.9,58.56560682]
[1750095695511,7.58300639,157.94,157.9,50.98260043]
[1750095695812,7.58300639,157.94,157.9,58.56560682]
[1750095696615,7.58300639,157.95,157.9,58.56560682]
[1750095697110,6.33090126,157.96,157.9,58.56560682]
[1750095697305,7.58300639,157.95,157.9,58.56560682]
[1750095697887,7.58300639,157.95,157.91,7.58300639]
[1750095698796,7.58300639,157.95,157.9,58.56560682]
[1750095699212,13.91422932,157.95,157.9,24.98260043]
[1750095699416,6.33122293,157.95,157.89,24.98314103]
[1750095699712,7.58300639,157.94,157.9,7.58300639]
[1750095699911,7.58300639,157.95,157.91,7.58300639]
[1750095700712,7.58300639,157.94,157.9,18.64964886]
[1750095700908,7.58300639,157.94,157.89,13.91649856]
[1750095701292,7.58300639,157.94,157.89,32.56614742]
[1750095701693,7.58300639,157.94,157.89,24.98314103]
[1750095701917,7.58300639,157.93,157.89,32.56614742]
[1750095702305,6.33114798,157.95,157.89,24.98314103]
[1750095702518,7.58300639,157.94,157.89,32.56614742]
[1750095703101,7.58300639,157.96,157.92,7.58300639]
[1750095703623,7.58300639,157.94,157.9,6.33277088]
[1750095703801,7.58300639,157.93,157.89,32.56611779]
[1750095704195,6.33096909,157.96,157.88,6.33365118]
[1750095704196,7.58300639,157.92,157.88,6.33365118]
[1750095707413,7.58300639,157.92,157.87,24.98386053]
[1750095707414,7.58300639,157.91,157.87,24.98386053]
[1750095707608,6.33235545,157.92,157.87,24.98386053]
[1750095707609,7.58300639,157.9,157.87,24.98386053]
[1750095707994,7.58300639,157.91,157.87,24.98386053]
[1750095708718,7.58300639,157.91,157.87,32.56686692]
[1750095710400,7.58300639,157.91,157.87,24.98386053]
[1750095710600,7.58300639,157.9,157.86,39.91758183]
[1750095710826,7.58300639,157.9,157.86,13.91758183]
[1750095711116,6.3324703,157.92,157.86,13.91758183]
[1750095711316,7.58300639,157.91,157.86,13.91758183]
[1750095712599,0.42648471,157.92,157.88,7.58300639]
[1750095713217,0.42648471,157.92,157.86,6.33457544]
[1750095713553,8.0094911,157.92,157.87,7.58300639]
[1750095713727,7.58300639,157.91,157.87,7.58300639]
[1750095714425,7.58300639,157.91,157.87,13.91720798]
[1750095715031,6.75888705,157.92,157.87,13.91720798]
[1750095715210,7.58300639,157.91,157.87,6.33420159]
[1750095716431,7.58300639,157.91,157.86,6.33472697]
[1750095716732,7.58300639,157.91,157.86,13.91773336]
[1750095717436,6.3328745,157.91,157.85,6.33508992]